[Event "GrandPrix_29.05"]
[Site "Chess.com"]
[Date "2020.05.29"]
[Round "3"]
[White "Yaroslav_Remizov"]
[Black "RogerFederer13"]
[Result "0-1"]
[WhiteElo "2137"]
[BlackElo "2109"]
[TimeControl "600+2"]
[EndTime "10:29:44 PDT"]
[Termination "RogerFederer13 won by resignation"]

1. e4 {[%clk 0:09:22.2]} 1... c6 {[%clk 0:10:00.6]} 2. d4 {[%clk 0:09:22.7]}
2... d5 {[%clk 0:10:01.9]} 3. Nc3 {[%clk 0:09:24.6]} 3... dxe4 {[%clk
0:10:03.1]} 4. Nxe4 {[%clk 0:09:26.5]} 4... Bf5 {[%clk 0:10:04.8]} 5. Ng3 {[%clk
0:09:27.4]} 5... Bg6 {[%clk 0:10:06.2]} 6. Bc4 {[%clk 0:09:28.6]} 6... e6 {[%clk
0:10:06.4]} 7. N1e2 {[%clk 0:09:28.6]} 7... Nf6 {[%clk 0:09:57.2]} 8. O-O {[%clk
0:09:29.3]} 8... Be7 {[%clk 0:08:51.7]} 9. f4 {[%clk 0:09:27.2]} 9... O-O {[%clk
0:08:52.5]} 10. f5 {[%clk 0:09:28.4]} 10... exf5 {[%clk 0:08:53.4]} 11. Nxf5
{[%clk 0:09:30.3]} 11... Nbd7 {[%clk 0:08:36.7]} 12. Neg3 {[%clk 0:09:29.2]}
12... Re8 {[%clk 0:08:23.6]} 13. Bg5 {[%clk 0:09:25.1]} 13... Bf8 {[%clk
0:05:50.7]} 14. Qf3 {[%clk 0:09:10.9]} 14... Qb6 {[%clk 0:05:02.7]} 15. h4
{[%clk 0:07:07.8]} 15... Ne5 {[%clk 0:03:45]} 16. Qb3 {[%clk 0:06:30.3]} 16...
Nxc4 {[%clk 0:03:36]} 17. Qxc4 {[%clk 0:06:32.2]} 17... Nd5 {[%clk 0:03:28.2]}
18. h5 {[%clk 0:06:19.8]} 18... Bxf5 {[%clk 0:03:24.1]} 19. Rxf5 {[%clk
0:05:05]} 19... g6 {[%clk 0:03:22.4]} 20. Rf3 {[%clk 0:04:33.9]} 20... Bg7
{[%clk 0:03:02.9]} 21. c3 {[%clk 0:03:50.7]} 21... Qb5 {[%clk 0:02:55.3]} 22.
Qxb5 {[%clk 0:03:39.2]} 22... cxb5 {[%clk 0:02:57.2]} 23. Raf1 {[%clk
0:03:39.2]} 23... f5 {[%clk 0:02:56.8]} 24. h6 {[%clk 0:03:03.7]} 24... Bf8
{[%clk 0:02:12.1]} 25. Nxf5 {[%clk 0:02:17.2]} 25... gxf5 {[%clk 0:02:07.4]} 26.
Rxf5 {[%clk 0:02:19.1]} 26... Ne3 {[%clk 0:00:59.4]} 27. Rxf8+ {[%clk
0:02:18.3]} 27... Rxf8 {[%clk 0:00:59.9]} 28. Bxe3 {[%clk 0:02:19.7]} 28...
Rxf1+ {[%clk 0:00:57.3]} 29. Kxf1 {[%clk 0:02:21.6]} 29... Kf7 {[%clk
0:00:55.9]} 30. g4 {[%clk 0:01:58.8]} 30... Ke6 {[%clk 0:00:46.9]} 31. Ke2
{[%clk 0:01:58.3]} 31... Kd5 {[%clk 0:00:26.2]} 32. Kd3 {[%clk 0:01:58.7]} 32...
a5 {[%clk 0:00:27.3]} 33. b3 {[%clk 0:01:36.7]} 33... a4 {[%clk 0:00:16.8]} 34.
c4+ {[%clk 0:01:37.3]} 34... Kd6 {[%clk 0:00:16.3]} 35. Bf4+ {[%clk 0:00:55]}
35... Kd7 {[%clk 0:00:13.4]} 36. cxb5 {[%clk 0:00:49.1]} 36... axb3 {[%clk
0:00:13.5]} 37. axb3 {[%clk 0:00:51]} 37... Ra5 {[%clk 0:00:07.7]} 38. Kc4
{[%clk 0:00:39.3]} 38... Ra1 {[%clk 0:00:06.9]} 39. g5 {[%clk 0:00:36]} 39...
Rf1 {[%clk 0:00:06.3]} 40. Be5 {[%clk 0:00:34.8]} 40... Rg1 {[%clk 0:00:07.6]}
41. Bf6 {[%clk 0:00:34.6]} 41... Kd6 {[%clk 0:00:07.1]} 42. Kd3 {[%clk
0:00:19.8]} 42... Kd5 {[%clk 0:00:07.9]} 43. Ke3 {[%clk 0:00:20.7]} 43... b6
{[%clk 0:00:05.7]} 44. Kf2 {[%clk 0:00:20]} 44... Rg4 {[%clk 0:00:06.5]} 45. Ke2
{[%clk 0:00:14.7]} 45... Rg2+ {[%clk 0:00:07.3]} 46. Kf3 {[%clk 0:00:14.5]}
46... Rg1 {[%clk 0:00:08.5]} 47. Kf2 {[%clk 0:00:14.6]} 47... Rg4 {[%clk
0:00:09.5]} 48. Ke3 {[%clk 0:00:16]} 48... Rg3+ {[%clk 0:00:10.3]} 49. Kf4
{[%clk 0:00:15]} 49... Rg1 {[%clk 0:00:11.4]} 50. Bd8 {[%clk 0:00:13.4]} 50...
Rf1+ {[%clk 0:00:11.4]} 51. Ke3 {[%clk 0:00:14.3]} 51... Rg1 {[%clk 0:00:12]}
52. Kf3 {[%clk 0:00:13.8]} 52... Rf1+ {[%clk 0:00:11.6]} 53. Kg2 {[%clk
0:00:14.8]} 53... Rf5 {[%clk 0:00:11]} 54. Bf6 {[%clk 0:00:15.5]} 54... Ke6
{[%clk 0:00:09.9]} 55. Kg3 {[%clk 0:00:12.9]} 55... Kf7 {[%clk 0:00:07]} 56. Bd8
{[%clk 0:00:12.2]} 56... Rxb5 {[%clk 0:00:08.3]} 57. Kf4 {[%clk 0:00:11.7]}
57... Rxb3 {[%clk 0:00:09]} 58. Ke5 {[%clk 0:00:12.7]} 58... b5 {[%clk
0:00:10.5]} 59. d5 {[%clk 0:00:13.2]} 59... Rd3 {[%clk 0:00:11.7]} 60. Kd6
{[%clk 0:00:12.8]} 60... b4 {[%clk 0:00:12.4]} 61. Bf6 {[%clk 0:00:13.8]} 61...
b3 {[%clk 0:00:13.1]} 62. Kc6 {[%clk 0:00:14.9]} 62... Rd2 {[%clk 0:00:14.2]}
63. d6 {[%clk 0:00:15.2]} 63... b2 {[%clk 0:00:14.3]} 64. Bxb2 {[%clk
0:00:14.8]} 64... Rxb2 {[%clk 0:00:16.2]} 65. d7 {[%clk 0:00:14]} 65... Ke7
{[%clk 0:00:14.8]} 66. g6 {[%clk 0:00:13.3]} 66... hxg6 {[%clk 0:00:13.2]} 67.
h7 {[%clk 0:00:14.3]} 67... Rb8 {[%clk 0:00:14.2]} 68. Kc7 {[%clk 0:00:13.8]}
68... Rd8 {[%clk 0:00:15]} 0-1

[Event "GrandPrix_29.05"]
[Site "Chess.com"]
[Date "2020.05.29"]
[Round "3"]
[White "abraham1982"]
[Black "Bulldog167"]
[Result "0-1"]
[WhiteElo "2255"]
[BlackElo "2600"]
[TimeControl "600+2"]
[EndTime "10:29:48 PDT"]
[Termination "Bulldog167 won on time"]

1. e4 {[%clk 0:10:01.9]} 1... c5 {[%clk 0:10:00.7]} 2. Nf3 {[%clk 0:09:58.8]}
2... e6 {[%clk 0:10:00.5]} 3. c3 {[%clk 0:09:57.9]} 3... Nf6 {[%clk 0:09:44.5]}
4. e5 {[%clk 0:09:53.9]} 4... Nd5 {[%clk 0:09:45.3]} 5. Bc4 {[%clk 0:09:52.6]}
5... Nb6 {[%clk 0:09:39.9]} 6. Bb3 {[%clk 0:09:52.1]} 6... Nc6 {[%clk
0:09:31.1]} 7. O-O {[%clk 0:09:50.8]} 7... d5 {[%clk 0:09:31.3]} 8. exd6 {[%clk
0:09:49.5]} 8... Bxd6 {[%clk 0:09:32.1]} 9. d4 {[%clk 0:09:48.4]} 9... O-O
{[%clk 0:08:55.6]} 10. Qd3 {[%clk 0:09:19.3]} 10... cxd4 {[%clk 0:08:38]} 11.
cxd4 {[%clk 0:08:59.8]} 11... Be7 {[%clk 0:07:28.8]} 12. a3 {[%clk 0:08:47.4]}
12... Bf6 {[%clk 0:07:21.6]} 13. Rd1 {[%clk 0:08:41.7]} 13... e5 {[%clk
0:06:36.5]} 14. d5 {[%clk 0:08:18.5]} 14... Nd4 {[%clk 0:06:34.9]} 15. Nxd4
{[%clk 0:07:57.3]} 15... exd4 {[%clk 0:06:36.8]} 16. Qf3 {[%clk 0:07:56.9]}
16... Qd7 {[%clk 0:05:24.3]} 17. Nd2 {[%clk 0:07:39.6]} 17... Qg4 {[%clk
0:03:42.5]} 18. Ne4 {[%clk 0:07:34.2]} 18... Be5 {[%clk 0:03:31.3]} 19. Bg5
{[%clk 0:07:14.1]} 19... f6 {[%clk 0:02:41.4]} 20. Bd2 {[%clk 0:06:46.3]} 20...
a5 {[%clk 0:01:39.9]} 21. Qxg4 {[%clk 0:05:55.8]} 21... Bxg4 {[%clk 0:01:41]}
22. f3 {[%clk 0:05:56.4]} 22... Bh5 {[%clk 0:01:33.4]} 23. Nc5 {[%clk
0:05:50.8]} 23... a4 {[%clk 0:01:25.7]} 24. Ba2 {[%clk 0:05:45.2]} 24... Bf7
{[%clk 0:01:24.3]} 25. f4 {[%clk 0:05:39.1]} 25... Bb8 {[%clk 0:01:17.3]} 26.
Ne6 {[%clk 0:04:28.3]} 26... Rc8 {[%clk 0:01:11.8]} 27. Rac1 {[%clk 0:04:21]}
27... Bd6 {[%clk 0:01:05.7]} 28. Kf1 {[%clk 0:04:05.8]} 28... Bh5 {[%clk
0:00:57.5]} 29. Re1 {[%clk 0:03:59.7]} 29... d3 {[%clk 0:00:57.7]} 30. Nd4
{[%clk 0:03:52.6]} 30... Bf7 {[%clk 0:00:46.1]} 31. Nb5 {[%clk 0:03:16.9]} 31...
Bf8 {[%clk 0:00:42.6]} 32. Nc7 {[%clk 0:03:15.1]} 32... Rab8 {[%clk 0:00:38.8]}
33. Be3 {[%clk 0:03:09.4]} 33... Rd8 {[%clk 0:00:20.4]} 34. Ne6 {[%clk
0:02:43.1]} 34... Rd6 {[%clk 0:00:18.8]} 35. Nxf8 {[%clk 0:01:51.2]} 35... Nxd5
{[%clk 0:00:19.1]} 36. Bc5 {[%clk 0:01:49.1]} 36... Rdd8 {[%clk 0:00:14.6]} 37.
Rcd1 {[%clk 0:01:41.4]} 37... Nxf4 {[%clk 0:00:06.8]} 38. Bxf7+ {[%clk
0:01:34.8]} 38... Kxf7 {[%clk 0:00:08.7]} 39. Re7+ {[%clk 0:01:31.6]} 39... Kxf8
{[%clk 0:00:10.1]} 40. Re4+ {[%clk 0:01:31]} 40... Kf7 {[%clk 0:00:10.9]} 41.
Rxf4 {[%clk 0:01:31]} 41... Rbc8 {[%clk 0:00:12.3]} 42. Bb4 {[%clk 0:01:27]}
42... Rc2 {[%clk 0:00:12.8]} 43. Bc3 {[%clk 0:01:22.2]} 43... Re8 {[%clk
0:00:05]} 44. Rxd3 {[%clk 0:00:48.2]} 44... Rc1+ {[%clk 0:00:05.6]} 45. Kf2
{[%clk 0:00:46.8]} 45... Rc2+ {[%clk 0:00:07.3]} 46. Rd2 {[%clk 0:00:46.4]}
46... Rxd2+ {[%clk 0:00:07.1]} 47. Bxd2 {[%clk 0:00:45.9]} 47... b5 {[%clk
0:00:09]} 48. Rf5 {[%clk 0:00:44.1]} 48... Rb8 {[%clk 0:00:09.3]} 49. Ke2 {[%clk
0:00:43]} 49... Ke6 {[%clk 0:00:10.2]} 50. Rc5 {[%clk 0:00:39.1]} 50... Rb7
{[%clk 0:00:11.8]} 51. Kd3 {[%clk 0:00:28.7]} 51... g5 {[%clk 0:00:10.1]} 52.
Kc3 {[%clk 0:00:28.3]} 52... h5 {[%clk 0:00:07.3]} 53. Kb4 {[%clk 0:00:27.6]}
53... Rd7 {[%clk 0:00:08.9]} 54. Bc3 {[%clk 0:00:26.8]} 54... Rd1 {[%clk
0:00:09.4]} 55. Rc6+ {[%clk 0:00:24.4]} 55... Kf5 {[%clk 0:00:05.7]} 56. Rxf6+
{[%clk 0:00:23.7]} 56... Kg4 {[%clk 0:00:07.6]} 57. Kxb5 {[%clk 0:00:23.5]}
57... Rg1 {[%clk 0:00:07.8]} 58. Rf2 {[%clk 0:00:23.1]} 58... h4 {[%clk
0:00:08.6]} 59. h3+ {[%clk 0:00:22.1]} 59... Kg3 {[%clk 0:00:09.8]} 60. Bd4
{[%clk 0:00:18.1]} 60... Rxg2 {[%clk 0:00:09]} 61. Rxg2+ {[%clk 0:00:17]} 61...
Kxg2 {[%clk 0:00:10.9]} 62. Kxa4 {[%clk 0:00:16.1]} 62... Kxh3 {[%clk
0:00:12.6]} 63. b4 {[%clk 0:00:14.4]} 63... Kg2 {[%clk 0:00:08.5]} 64. b5 {[%clk
0:00:11.8]} 64... h3 {[%clk 0:00:10]} 65. Be5 {[%clk 0:00:10.2]} 65... h2 {[%clk
0:00:11.5]} 66. Bxh2 {[%clk 0:00:09.3]} 66... Kxh2 {[%clk 0:00:13.4]} 67. b6
{[%clk 0:00:09.2]} 67... g4 {[%clk 0:00:15.3]} 68. b7 {[%clk 0:00:11]} 68... g3
{[%clk 0:00:17.2]} 69. b8=Q {[%clk 0:00:05.1]} 69... Kh1 {[%clk 0:00:19.1]} 70.
Qh8+ {[%clk 0:00:04.3]} 70... Kg1 {[%clk 0:00:19.9]} 0-1

[Event "GrandPrix_29.05"]
[Site "Chess.com"]
[Date "2020.05.29"]
[Round "3"]
[White "SergeyVashchilov"]
[Black "Lion_DL"]
[Result "0-1"]
[WhiteElo "2074"]
[BlackElo "2123"]
[TimeControl "600+2"]
[EndTime "10:29:51 PDT"]
[Termination "Lion_DL won by resignation"]

1. e4 {[%clk 0:10:01.9]} 1... Nc6 {[%clk 0:09:59.1]} 2. Nc3 {[%clk 0:09:59.1]}
2... Nf6 {[%clk 0:09:58.9]} 3. Nf3 {[%clk 0:09:51.9]} 3... d5 {[%clk 0:09:57.8]}
4. exd5 {[%clk 0:09:49]} 4... Nxd5 {[%clk 0:09:57.9]} 5. Bc4 {[%clk 0:09:41.1]}
5... e6 {[%clk 0:09:16.8]} 6. O-O {[%clk 0:09:29.5]} 6... Be7 {[%clk 0:09:05.9]}
7. d4 {[%clk 0:08:55.9]} 7... Nxc3 {[%clk 0:08:50.3]} 8. bxc3 {[%clk 0:08:56.3]}
8... O-O {[%clk 0:08:50.7]} 9. a4 {[%clk 0:08:18.3]} 9... b6 {[%clk 0:08:38.5]}
10. Qe2 {[%clk 0:07:56.3]} 10... Bb7 {[%clk 0:08:28.8]} 11. Bf4 {[%clk
0:07:21.1]} 11... h6 {[%clk 0:06:20.6]} 12. Rfe1 {[%clk 0:07:16]} 12... Bd6
{[%clk 0:06:13.7]} 13. Bg3 {[%clk 0:06:26.8]} 13... Bxg3 {[%clk 0:06:04.6]} 14.
hxg3 {[%clk 0:06:28.7]} 14... Qf6 {[%clk 0:05:32.3]} 15. Ba6 {[%clk 0:05:53.8]}
15... Bxa6 {[%clk 0:05:12.9]} 16. Qxa6 {[%clk 0:05:55.7]} 16... Qf5 {[%clk
0:05:08.5]} 17. Re2 {[%clk 0:04:53.3]} 17... Qa5 {[%clk 0:04:53.8]} 18. Qc4
{[%clk 0:04:12.1]} 18... Qd5 {[%clk 0:04:38]} 19. Qxd5 {[%clk 0:03:49.7]} 19...
exd5 {[%clk 0:04:39.9]} 20. Rd1 {[%clk 0:03:51.1]} 20... Rfe8 {[%clk 0:04:32.6]}
21. Rde1 {[%clk 0:03:51.9]} 21... Kf8 {[%clk 0:04:27.4]} 22. Ne5 {[%clk
0:03:45]} 22... Nxe5 {[%clk 0:04:27.4]} 23. dxe5 {[%clk 0:03:23.1]} 23... h5
{[%clk 0:04:26.2]} 24. f4 {[%clk 0:03:00.2]} 24... Rad8 {[%clk 0:03:30.3]} 25.
f5 {[%clk 0:01:17.1]} 25... d4 {[%clk 0:03:24.3]} 26. cxd4 {[%clk 0:01:10.2]}
26... Rxd4 {[%clk 0:03:26.2]} 27. Re4 {[%clk 0:01:11.6]} 27... Red8 {[%clk
0:03:04.3]} 28. c4 {[%clk 0:00:34]} 28... c5 {[%clk 0:02:28.9]} 29. Kh2 {[%clk
0:00:27.4]} 29... Rxe4 {[%clk 0:02:15]} 30. Rxe4 {[%clk 0:00:29.3]} 30... Rd1
{[%clk 0:02:09.7]} 31. g4 {[%clk 0:00:26.9]} 31... hxg4 {[%clk 0:01:51.4]} 32.
Kg3 {[%clk 0:00:14.9]} 32... Ra1 {[%clk 0:01:35.6]} 33. Kxg4 {[%clk 0:00:14.4]}
33... Rxa4 {[%clk 0:01:36]} 34. Kf4 {[%clk 0:00:15.8]} 34... a6 {[%clk
0:01:27.5]} 35. e6 {[%clk 0:00:10.9]} 35... fxe6 {[%clk 0:01:26.5]} 36. Rxe6
{[%clk 0:00:09.8]} 36... Rxc4+ {[%clk 0:01:19.1]} 37. Kg5 {[%clk 0:00:10.8]}
37... Rb4 {[%clk 0:01:14.3]} 38. Rc6 {[%clk 0:00:09.5]} 38... a5 {[%clk
0:01:11.5]} 39. Rc8+ {[%clk 0:00:10.5]} 39... Kf7 {[%clk 0:01:11.3]} 40. Rc7+
{[%clk 0:00:11.7]} 40... Kf8 {[%clk 0:01:07]} 41. Rc8+ {[%clk 0:00:12.8]} 41...
Kf7 {[%clk 0:00:56.7]} 42. Rc7+ {[%clk 0:00:13.7]} 42... Kg8 {[%clk 0:00:51.6]}
43. Rc8+ {[%clk 0:00:12]} 43... Kh7 {[%clk 0:00:21.4]} 44. Rc7 {[%clk
0:00:12.8]} 44... Rb2 {[%clk 0:00:20.4]} 45. g4 {[%clk 0:00:10]} 45... Rf2
{[%clk 0:00:21.7]} 46. Rb7 {[%clk 0:00:06.4]} 46... a4 {[%clk 0:00:22.1]} 47.
Rxb6 {[%clk 0:00:07.5]} 47... a3 {[%clk 0:00:23.7]} 48. Ra6 {[%clk 0:00:05.4]}
48... a2 {[%clk 0:00:25]} 49. Ra7 {[%clk 0:00:06.5]} 49... c4 {[%clk 0:00:25.1]}
50. f6 {[%clk 0:00:07.8]} 50... Rxf6 {[%clk 0:00:23]} 51. Rxa2 {[%clk
0:00:07.8]} 51... c3 {[%clk 0:00:22.6]} 52. Rc2 {[%clk 0:00:06.2]} 52... Rc6
{[%clk 0:00:23.1]} 53. Kh5 {[%clk 0:00:06.5]} 53... Rc5+ {[%clk 0:00:21.4]} 54.
g5 {[%clk 0:00:05]} 54... g6+ {[%clk 0:00:21.5]} 55. Kg4 {[%clk 0:00:05.8]}
55... Kg7 {[%clk 0:00:22.1]} 56. Kf4 {[%clk 0:00:06.7]} 56... Kf7 {[%clk
0:00:21.8]} 57. Ke4 {[%clk 0:00:08]} 57... Ke6 {[%clk 0:00:23]} 58. Kd4 {[%clk
0:00:09.3]} 58... Rc8 {[%clk 0:00:23.5]} 59. Ke4 {[%clk 0:00:06.6]} 59... Rc7
{[%clk 0:00:23.3]} 60. Kf4 {[%clk 0:00:04.5]} 60... Kd5 {[%clk 0:00:24.2]} 61.
Ke3 {[%clk 0:00:04.9]} 61... Ke5 {[%clk 0:00:25.4]} 62. Kd3 {[%clk 0:00:03.9]}
62... Kf5 {[%clk 0:00:26.2]} 63. Rf2+ {[%clk 0:00:02.3]} 63... Kxg5 {[%clk
0:00:27]} 64. Kc2 {[%clk 0:00:03.3]} 64... Rc6 {[%clk 0:00:27]} 65. Rg2+ {[%clk
0:00:04.4]} 65... Kf4 {[%clk 0:00:27.9]} 66. Rf2+ {[%clk 0:00:04.3]} 66... Kg3
{[%clk 0:00:29.1]} 67. Rf1 {[%clk 0:00:04.8]} 67... g5 {[%clk 0:00:29.8]} 68.
Rg1+ {[%clk 0:00:05.5]} 68... Kf4 {[%clk 0:00:31.1]} 69. Rf1+ {[%clk 0:00:06.7]}
69... Kg4 {[%clk 0:00:31.2]} 70. Rg1+ {[%clk 0:00:07.8]} 70... Kf5 {[%clk
0:00:32.5]} 71. Rf1+ {[%clk 0:00:08.9]} 71... Kg6 {[%clk 0:00:34]} 72. Rg1
{[%clk 0:00:09.8]} 72... Rc5 {[%clk 0:00:34.9]} 73. Rg2 {[%clk 0:00:10.2]} 73...
Kf5 {[%clk 0:00:35.6]} 74. Rf2+ {[%clk 0:00:11]} 74... Ke4 {[%clk 0:00:36.6]}
75. Rg2 {[%clk 0:00:11.5]} 75... Kf3 {[%clk 0:00:37.7]} 76. Rg1 {[%clk
0:00:11.9]} 76... g4 {[%clk 0:00:38.9]} 77. Rf1+ {[%clk 0:00:13.3]} 77... Ke2
{[%clk 0:00:39.4]} 78. Rf8 {[%clk 0:00:15.2]} 78... g3 {[%clk 0:00:39.5]} 79.
Re8+ {[%clk 0:00:16.3]} 79... Kf1 {[%clk 0:00:39.7]} 80. Rf8+ {[%clk 0:00:16.9]}
80... Kg1 {[%clk 0:00:40.6]} 81. Rg8 {[%clk 0:00:16]} 81... g2 {[%clk
0:00:41.3]} 82. Rg3 {[%clk 0:00:15.6]} 82... Kf2 {[%clk 0:00:39.6]} 0-1

[Event "GrandPrix_29.05"]
[Site "Chess.com"]
[Date "2020.05.29"]
[Round "3"]
[White "Ave_Mariia"]
[Black "farhadtahirov"]
[Result "1-0"]
[WhiteElo "2188"]
[BlackElo "1901"]
[TimeControl "600+2"]
[EndTime "10:29:52 PDT"]
[Termination "Ave_Mariia won by resignation"]

1. c4 {[%clk 0:10:01.9]} 1... Nf6 {[%clk 0:09:55.6]} 2. Nc3 {[%clk 0:10:01.6]}
2... c5 {[%clk 0:09:47.8]} 3. g3 {[%clk 0:10:00.9]} 3... g6 {[%clk 0:09:46.8]}
4. Bg2 {[%clk 0:10:01.8]} 4... Bg7 {[%clk 0:09:48.2]} 5. Nf3 {[%clk 0:10:03]}
5... O-O {[%clk 0:09:49.7]} 6. O-O {[%clk 0:10:03.8]} 6... d6 {[%clk 0:09:45]}
7. a3 {[%clk 0:09:39.1]} 7... Na6 {[%clk 0:08:28.7]} 8. Rb1 {[%clk 0:09:35.2]}
8... Bf5 {[%clk 0:08:28.8]} 9. d3 {[%clk 0:09:31.9]} 9... Qd7 {[%clk 0:08:29.4]}
10. Bd2 {[%clk 0:09:10.5]} 10... Bh3 {[%clk 0:08:23.7]} 11. b4 {[%clk
0:09:05.2]} 11... Bxg2 {[%clk 0:05:03.1]} 12. Kxg2 {[%clk 0:09:05.5]} 12... cxb4
{[%clk 0:04:52.4]} 13. axb4 {[%clk 0:09:05.9]} 13... d5 {[%clk 0:04:23.8]} 14.
b5 {[%clk 0:08:26.5]} 14... Nc5 {[%clk 0:04:05]} 15. d4 {[%clk 0:07:28.4]} 15...
Nce4 {[%clk 0:03:47.3]} 16. Ne5 {[%clk 0:07:29.1]} 16... Qf5 {[%clk 0:03:08.5]}
17. f3 {[%clk 0:05:17]} 17... Nxc3 {[%clk 0:02:54.7]} 18. Bxc3 {[%clk
0:05:18.9]} 18... dxc4 {[%clk 0:02:56.1]} 19. e4 {[%clk 0:05:14.8]} 19... Qc8
{[%clk 0:02:52.9]} 20. Bb4 {[%clk 0:04:55.6]} 20... Nd7 {[%clk 0:02:32.1]} 21.
f4 {[%clk 0:03:44.3]} 21... Nxe5 {[%clk 0:02:16.6]} 22. fxe5 {[%clk 0:03:40.4]}
22... Qd7 {[%clk 0:02:14.4]} 23. Bc3 {[%clk 0:03:20.4]} 23... f6 {[%clk
0:01:13]} 24. Qe2 {[%clk 0:02:47.3]} 24... fxe5 {[%clk 0:01:10.1]} 25. Qxc4+
{[%clk 0:02:46.7]} 25... Kh8 {[%clk 0:01:11]} 26. dxe5 {[%clk 0:01:43]} 26...
Rfc8 {[%clk 0:01:06.7]} 27. Qd4 {[%clk 0:01:17.2]} 27... Qe6 {[%clk 0:00:57.1]}
28. Rbd1 {[%clk 0:01:00]} 28... h5 {[%clk 0:00:53.5]} 29. Rd3 {[%clk 0:00:55.8]}
29... Kh7 {[%clk 0:00:41.2]} 30. Qd5 {[%clk 0:00:57]} 30... Qg4 {[%clk
0:00:38.4]} 31. Rdf3 {[%clk 0:00:45]} 31... Rd8 {[%clk 0:00:26.6]} 32. Qf7
{[%clk 0:00:35.8]} 32... Qxe4 {[%clk 0:00:12.5]} 33. e6 {[%clk 0:00:33.5]} 33...
Rg8 {[%clk 0:00:11.4]} 34. Qxe7 {[%clk 0:00:24.9]} 34... Rae8 {[%clk 0:00:10.6]}
35. Qg5 {[%clk 0:00:24.2]} 35... Bxc3 {[%clk 0:00:08.8]} 36. Kh3 {[%clk
0:00:21.2]} 36... Qg4+ {[%clk 0:00:08.1]} 37. Qxg4 {[%clk 0:00:22.2]} 37...
hxg4+ {[%clk 0:00:09.6]} 38. Kxg4 {[%clk 0:00:24.1]} 38... Rxe6 {[%clk
0:00:10.7]} 39. Rxc3 {[%clk 0:00:24.7]} 39... Rg7 {[%clk 0:00:10.2]} 40. Rf8
{[%clk 0:00:22.7]} 40... g5 {[%clk 0:00:02.5]} 41. Rcc8 {[%clk 0:00:20.9]} 41...
Kg6 {[%clk 0:00:03.1]} 42. Ra8 {[%clk 0:00:21.2]} 42... Re4+ {[%clk 0:00:04.1]}
43. Kf3 {[%clk 0:00:20.9]} 43... Rb4 {[%clk 0:00:05]} 44. Rxa7 {[%clk
0:00:19.1]} 44... Rxb5 {[%clk 0:00:06]} 45. Raa8 {[%clk 0:00:17.6]} 45... Rb3+
{[%clk 0:00:06.4]} 46. Kg2 {[%clk 0:00:16.7]} 46... Rb2+ {[%clk 0:00:06.8]} 47.
Rf2 {[%clk 0:00:16.5]} 47... Rxf2+ {[%clk 0:00:05.2]} 48. Kxf2 {[%clk
0:00:18.4]} 48... Rh7 {[%clk 0:00:05.8]} 49. Kg2 {[%clk 0:00:17.5]} 49... Kf5
{[%clk 0:00:07.1]} 50. Rb8 {[%clk 0:00:16.7]} 50... Ke4 {[%clk 0:00:07.4]} 51.
Rg8 {[%clk 0:00:14.9]} 51... Kf5 {[%clk 0:00:07.5]} 52. Rf8+ {[%clk 0:00:16]}
52... Ke5 {[%clk 0:00:08.6]} 53. Rg8 {[%clk 0:00:17.1]} 53... Kd4 {[%clk
0:00:08.1]} 54. Rxg5 {[%clk 0:00:17]} 54... Kc4 {[%clk 0:00:09.7]} 55. h4 {[%clk
0:00:14.1]} 55... b5 {[%clk 0:00:10.8]} 56. Rg8 {[%clk 0:00:15.1]} 56... b4
{[%clk 0:00:11.7]} 57. Rc8+ {[%clk 0:00:16.1]} 57... Kd3 {[%clk 0:00:11.9]} 58.
Rb8 {[%clk 0:00:17.3]} 58... Kc3 {[%clk 0:00:13.3]} 59. Kh3 {[%clk 0:00:16.6]}
59... b3 {[%clk 0:00:14.3]} 60. g4 {[%clk 0:00:17.8]} 60... b2 {[%clk
0:00:13.1]} 61. g5 {[%clk 0:00:18.6]} 61... Kc2 {[%clk 0:00:03.9]} 62. Kg4
{[%clk 0:00:18.6]} 62... b1=Q {[%clk 0:00:03.6]} 63. Rxb1 {[%clk 0:00:18.7]}
63... Kxb1 {[%clk 0:00:05.1]} 64. g6 {[%clk 0:00:19.6]} 64... Ra7 {[%clk
0:00:04.3]} 65. h5 {[%clk 0:00:18.7]} 65... Kc2 {[%clk 0:00:05.9]} 66. h6 {[%clk
0:00:20]} 66... Ra6 {[%clk 0:00:02.5]} 67. Kg5 {[%clk 0:00:17.1]} 67... Ra5+
{[%clk 0:00:02.2]} 68. Kf6 {[%clk 0:00:18.1]} 68... Ra6+ {[%clk 0:00:03.7]} 69.
Kg7 {[%clk 0:00:18.7]} 69... Ra7+ {[%clk 0:00:04.9]} 70. Kh8 {[%clk 0:00:18.1]}
70... Ra8+ {[%clk 0:00:05.9]} 71. Kh7 {[%clk 0:00:18.6]} 71... Kd3 {[%clk
0:00:07.4]} 72. g7 {[%clk 0:00:19.7]} 72... Ra7 {[%clk 0:00:04.1]} 73. Kh8
{[%clk 0:00:20.6]} 73... Ra8+ {[%clk 0:00:02.6]} 74. g8=Q {[%clk 0:00:21.4]}
74... Rxg8+ {[%clk 0:00:03.8]} 75. Kxg8 {[%clk 0:00:23.3]} 1-0